bitfinex-derivatives/quotes_BTCF0:USTF0_20240815
["timestamp","ask_amount","ask_price","bid_price","bid_amount"]
[1723736362060,0.88610809,59497.0,59496.0,0.00013232]
[1723736362265,0.98618449,59497.0,59496.0,0.00013232]
[1723736362451,0.88610809,59497.0,59496.0,0.00013232]
[1723736362858,1.47438209,59497.0,59496.0,0.00013232]
[1723736363060,0.97045559,59497.0,59496.0,0.00013232]
[1723736363750,1.47469559,59497.0,59496.0,0.00013232]
[1723736363954,0.97045559,59497.0,59496.0,0.00013232]
[1723736364163,0.97145559,59497.0,59496.0,0.00013232]
[1723736364859,0.97245559,59497.0,59496.0,0.00013232]
[1723736365059,1.47669559,59497.0,59496.0,0.00013232]
[1723736365352,0.9452155,59497.0,59496.0,0.00013232]
[1723736365864,1.4494555,59497.0,59496.0,0.00013232]
[1723736366364,1.53267638,59497.0,59496.0,0.00013232]
[1723736367156,1.4494555,59497.0,59496.0,0.00013232]
[1723736367962,1.4484555,59497.0,59496.0,0.00013232]
[1723736368168,1.4494555,59497.0,59496.0,0.00013232]
[1723736368568,0.9452155,59497.0,59496.0,0.00013232]
[1723736369767,0.41303433,59497.0,59496.0,0.08416732]
[1723736369961,0.3631135,59497.0,59496.0,0.16820232]
[1723736370363,0.0023135,59497.0,59496.0,0.16820232]
[1723736370563,0.00025206,59503.0,59502.0,0.084027]
[1723736370758,0.00025206,59503.0,59502.0,0.588227]
[1723736371567,0.00025206,59503.0,59502.0,0.084027]
[1723736371766,0.00125206,59503.0,59502.0,0.084067]
[1723736372768,0.00225206,59503.0,59502.0,0.085067]
[1723736373469,0.00225206,59503.0,59502.0,0.09474852]
[1723736374376,0.00225206,59503.0,59502.0,0.01072152]
[1723736375372,0.08627706,59503.0,59502.0,0.01072152]
[1723736376063,0.09627706,59503.0,59502.0,0.01072152]
[1723736376862,0.01225206,59503.0,59502.0,0.01072152]
[1723736377069,0.00225206,59503.0,59502.0,0.09474852]
[1723736379180,0.01225206,59503.0,59502.0,0.09474852]
[1723736379381,0.06217289,59503.0,59502.0,0.01072152]
[1723736381371,0.01225206,59503.0,59502.0,0.01072152]
[1723736381573,0.09627706,59503.0,59502.0,0.01072152]
[1723736382193,0.08627706,59503.0,59502.0,0.01072152]
[1723736382876,0.00225206,59503.0,59502.0,0.01072152]
[1723736384684,0.05232914,59503.0,59502.0,0.01072152]
[1723736385072,0.00225206,59503.0,59502.0,0.01072152]
[1723736385687,0.08627706,59503.0,59502.0,0.01072152]
[1723736387384,0.15283623,59503.0,59502.0,0.01072152]
[1723736390874,0.06881123,59503.0,59502.0,0.01072152]
[1723736392981,0.00225206,59503.0,59502.0,0.01072152]
[1723736393189,0.00225206,59503.0,59502.0,0.09474852]
[1723736393382,0.06881123,59503.0,59502.0,0.09474852]
[1723736394181,0.00225206,59503.0,59502.0,0.01072152]
[1723736395371,0.08547294,59503.0,59502.0,0.01072152]
[1723736396376,0.00225206,59503.0,59502.0,0.01072152]
[1723736397187,0.08627706,59503.0,59502.0,0.01072152]
[1723736397488,0.11351439,59503.0,59502.0,0.01072152]
[1723736399289,0.21359079,59503.0,59502.0,0.01072152]
[1723736399876,0.57439079,59503.0,59502.0,0.01072152]
[1723736400889,0.47431439,59503.0,59502.0,0.01072152]
[1723736401292,0.47431439,59503.0,59502.0,0.00104]
[1723736401890,0.55833939,59503.0,59502.0,0.00104]
[1723736402083,1.62484598,59503.0,59502.0,0.00104]
[1723736402284,1.70887098,59503.0,59502.0,0.00104]
[1723736402596,0.168078,59493.0,59492.0,0.00025206]
[1723736402784,0.99461299,59493.0,59492.0,0.00025206]
[1723736403091,1.12311299,59493.0,59492.0,0.00025206]
[1723736403292,1.20715199,59493.0,59492.0,0.00025206]
[1723736403479,1.4434117,59493.0,59492.0,0.00025206]
[1723736403679,1.32629069,59493.0,59492.0,0.00025206]
[1723736403990,1.41749387,59493.0,59492.0,0.00025206]
[1723736404189,1.44361567,59493.0,59492.0,0.00025206]
[1723736404384,1.32670727,59493.0,59492.0,0.00025206]
[1723736404892,1.44461567,59493.0,59492.0,0.00025206]
[1723736405296,1.32870727,59493.0,59492.0,0.00025206]
[1723736406090,1.20970727,59493.0,59492.0,0.00025206]
[1723736407388,1.21502119,59493.0,59492.0,0.00025206]
[1723736407693,1.13098219,59493.0,59492.0,0.00025206]
[1723736407882,1.05564579,59493.0,59492.0,0.00025206]
[1723736408784,1.13968479,59493.0,59492.0,0.00025206]
[1723736410797,1.05564579,59493.0,59492.0,0.00025206]
[1723736411003,0.92714579,59493.0,59492.0,0.00025206]
[1723736411294,1.02718811,59493.0,59492.0,0.00025206]
[1723736411789,0.84310679,59493.0,59492.0,0.00025206]
[1723736411994,0.84310679,59493.0,59492.0,0.08429306]
[1723736412291,0.85171076,59493.0,59492.0,0.08429306]
[1723736412491,0.93574976,59493.0,59492.0,0.00025206]
[1723736413191,1.45574976,59493.0,59492.0,0.00025206]
[1723736413391,1.42851004,59493.0,59492.0,0.00025206]
[1723736413581,1.45575597,59493.0,59492.0,0.00025206]
[1723736414187,1.447152,59493.0,59492.0,0.00025206]
[1723736414586,1.45560211,59493.0,59492.0,0.00025206]
[1723736415297,1.45460211,59493.0,59492.0,0.00025206]
[1723736415501,1.45560244,59493.0,59492.0,0.00025206]
[1723736417792,1.37156344,59493.0,59492.0,0.00025206]
[1723736418392,1.36311333,59493.0,59492.0,0.00025206]
[1723736418696,1.16819428,59493.0,59492.0,0.08429306]
[1723736418999,1.08415528,59493.0,59492.0,0.08429306]
[1723736420001,1.08415528,59493.0,59492.0,0.16833406]
[1723736420189,0.00255528,59493.0,59492.0,1.07261406]
[1723736420394,0.42763172,59498.0,59497.0,0.084034]
[1723736420595,0.42763172,59498.0,59492.0,1.16563206]
[1723736420596,0.534833,59498.0,59492.0,0.00066864]
[1723736420788,0.084034,59497.0,59496.0,0.2632]
[1723736421098,0.434034,59497.0,59496.0,0.2632]
[1723736421505,0.794834,59497.0,59496.0,0.2632]
[1723736422202,0.794834,59497.0,59492.0,0.00066864]
[1723736422203,0.084039,59493.0,59492.0,0.00066864]
[1723736422400,0.124039,59493.0,59492.0,0.00066864]
[1723736422598,0.29166209,59493.0,59492.0,0.00066864]
[1723736422900,0.29166209,59493.0,59486.0,0.129]
[1723736422901,0.084048,59487.0,59486.0,0.129]
[1723736423217,0.815648,59487.0,59486.0,0.129]
[1723736424213,0.81638261,59487.0,59486.0,0.129]
[1723736424400,0.80638261,59487.0,59486.0,0.129]
[1723736424700,0.72233461,59487.0,59486.0,0.213049]
[1723736424998,0.78923644,59487.0,59486.0,0.213049]
[1723736425202,0.72233461,59487.0,59486.0,0.213049]
[1723736425601,0.72333461,59487.0,59486.0,0.213049]
[1723736425996,0.72433461,59487.0,59486.0,0.214049]
[1723736426900,0.72433461,59487.0,59486.0,0.13]
[1723736429501,0.72433461,59487.0,59486.0,0.214049]
[1723736429502,0.80792275,59487.0,59486.0,0.214049]
[1723736429900,0.80792275,59487.0,59486.0,0.13]
[1723736429901,0.80838261,59487.0,59486.0,0.13]
[1723736430908,0.8356271,59487.0,59486.0,0.13]
[1723736431102,0.8456271,59487.0,59486.0,0.13]
[1723736431309,0.84562702,59487.0,59486.0,0.13]
[1723736431905,0.92967502,59487.0,59486.0,0.13]
[1723736432204,0.83562702,59487.0,59486.0,0.13]
[1723736432904,0.84562702,59487.0,59486.0,0.13]
[1723736433100,0.84562768,59487.0,59486.0,0.13]
[1723736433305,0.83562768,59487.0,59486.0,0.13]
[1723736433511,0.91967568,59487.0,59486.0,0.13]
[1723736433810,0.83562768,59487.0,59486.0,0.13]
[1723736434211,0.84562768,59487.0,59486.0,0.13]
[1723736435600,0.94567,59487.0,59486.0,0.13]
[1723736436411,1.029718,59487.0,59486.0,0.13]
[1723736436709,0.84562768,59487.0,59486.0,0.13]
[1723736437303,0.168098,59486.0,59485.0,0.1289]
[1723736437505,0.61939207,59486.0,59485.0,0.12801336]
[1723736438502,0.62112668,59486.0,59485.0,0.12901336]
[1723736438705,0.62212668,59486.0,59485.0,0.12901336]
[1723736442007,0.62212821,59486.0,59485.0,0.12901336]
[1723736442512,0.45403021,59486.0,59485.0,0.12901336]
[1723736442813,0.45403021,59486.0,59485.0,0.21306436]
[1723736443209,0.55465145,59486.0,59485.0,0.21306436]
[1723736443917,0.45403021,59486.0,59485.0,0.21306436]
[1723736444416,0.02998121,59486.0,59485.0,0.80143536]
[1723736444611,0.02998121,59486.0,59485.0,0.21306436]
[1723736444612,0.00273461,59486.0,59485.0,0.21306436]
[1723736444819,0.11402832,59486.0,59485.0,0.12901336]
[1723736445117,0.12402832,59486.0,59485.0,0.12901336]
[1723736445333,0.22465028,59486.0,59485.0,0.12901336]
[1723736445511,0.12402904,59486.0,59485.0,0.12901336]
[1723736445706,0.12402904,59486.0,59485.0,0.21306436]
[1723736446619,0.12402984,59486.0,59485.0,0.21306436]
[1723736446816,0.22461484,59486.0,59485.0,0.21306436]
[1723736447013,0.22461196,59486.0,59485.0,0.21306436]
[1723736447522,0.12402984,59486.0,59485.0,0.21306436]
[1723736448713,0.22461196,59486.0,59485.0,0.12901336]
[1723736449711,0.22461196,59486.0,59485.0,0.001]
[1723736449906,0.22461196,59486.0,59485.0,0.085051]
[1723736450514,0.22461196,59486.0,59485.0,0.001]
[1723736451311,0.12402984,59486.0,59485.0,0.001]
[1723736451612,0.20807884,59486.0,59485.0,0.001]
[1723736452515,0.56887884,59486.0,59485.0,0.001]
[1723736453519,0.48482984,59486.0,59485.0,0.001]
[1723736455524,0.48482926,59486.0,59485.0,0.001]
[1723736456115,0.39078026,59486.0,59485.0,0.085051]
[1723736456723,0.49153677,59486.0,59485.0,0.085051]
[1723736457426,0.69153677,59486.0,59485.0,0.001]
[1723736457626,0.67482926,59486.0,59485.0,0.001]
[1723736458416,0.75887826,59486.0,59485.0,0.001]
[1723736459419,0.83407624,59486.0,59485.0,0.001]
[1723736459611,0.83406529,59486.0,59485.0,0.001]
[1723736460621,0.67482995,59486.0,59485.0,0.001]
[1723736460826,0.47482995,59486.0,59485.0,0.001]
[1723736462128,0.72482995,59486.0,59485.0,0.085051]
[1723736462319,0.72482995,59486.0,59485.0,0.001]
[1723736462714,0.80016525,59486.0,59485.0,0.001]
[1723736465130,0.88421425,59486.0,59485.0,0.001]
[1723736467220,0.80887895,59486.0,59485.0,0.001]
[1723736467531,0.88416355,59486.0,59485.0,0.001]
[1723736470333,0.80887874,59486.0,59485.0,0.001]
[1723736470534,0.72482974,59486.0,59485.0,0.001]
[1723736470831,0.49160731,59486.0,59485.0,0.085051]
[1723736472026,0.39078074,59486.0,59485.0,0.09311654]
[1723736472735,0.41078074,59486.0,59485.0,0.09311654]
[1723736472938,0.48634644,59486.0,59485.0,0.09311654]
[1723736473232,0.55039544,59486.0,59485.0,0.00906554]
[1723736474840,0.47482974,59486.0,59485.0,0.00906554]
[1723736475233,0.39078074,59486.0,59485.0,0.09311654]
[1723736475427,0.39078074,59486.0,59485.0,0.99743654]
[1723736475838,0.39078074,59486.0,59485.0,1.08148754]
[1723736476137,0.02997787,59486.0,59485.0,1.08148754]
[1723736476330,0.02997787,59486.0,59485.0,1.04769935]
[1723736476639,0.02997787,59486.0,59485.0,0.59743654]
[1723736477133,0.02997787,59486.0,59485.0,0.09311654]
[1723736477934,0.02997702,59486.0,59485.0,0.09311654]
[1723736478837,0.02997702,59486.0,59485.0,0.99743654]
[1723736479237,0.00273461,59486.0,59485.0,0.99743654]
[1723736479643,0.00273461,59486.0,59485.0,1.08148754]
[1723736479839,0.08397029,59491.0,59490.0,0.084044]
[1723736480143,0.08393054,59494.0,59490.0,0.345144]
[1723736480337,0.08393054,59494.0,59493.0,0.084039]
[1723736480541,0.08393054,59495.0,59494.0,0.084038]
[1723736480937,0.16393054,59495.0,59494.0,0.084038]
[1723736481136,0.08,59495.0,59494.0,0.084038]
[1723736481737,0.08,59495.0,59494.0,0.084078]
[1723736481937,0.08393054,59497.0,59494.0,0.084078]
[1723736481938,0.08393054,59497.0,59496.0,0.084035]
[1723736482134,0.08393054,59498.0,59497.0,0.084034]
[1723736482670,0.08393054,59498.0,59497.0,0.168068]
[1723736482831,0.08393054,59499.0,59498.0,0.168064]
[1723736483069,0.44473054,59500.0,59498.0,0.084032]
[1723736483253,0.44473054,59500.0,59499.0,0.084031]
[1723736483540,0.10082164,59504.0,59502.0,0.084027]
[1723736483746,0.10082164,59504.0,59503.0,0.656]
[1723736483747,0.08380879,59504.0,59503.0,0.656]
[1723736483937,0.3608,59506.0,59505.0,0.084022]
[1723736485134,0.3608,59506.0,59505.0,0.084062]
[1723736486142,0.3688,59506.0,59505.0,0.084062]
[1723736486346,0.43574562,59506.0,59505.0,0.084062]
[1723736487442,0.43974562,59506.0,59505.0,0.084062]
[1723736487647,0.43974562,59506.0,59505.0,0.09211034]
[1723736488238,0.3728,59506.0,59505.0,0.09211034]
[1723736492148,0.42295425,59506.0,59505.0,0.00808834]
[1723736492448,0.3928,59506.0,59505.0,0.00808834]
[1723736492650,0.45974562,59506.0,59505.0,0.00808834]
[1723736493348,0.45974562,59506.0,59503.0,0.479805]
[1723736493349,0.084024,59504.0,59503.0,0.00088]
[1723736493538,0.05015651,59504.0,59501.0,0.084027]
[1723736493739,0.05015651,59504.0,59498.0,0.389]
[1723736493740,0.05015651,59504.0,59503.0,0.084025]
[1723736494048,0.05015619,59504.0,59498.0,0.389]
[1723736494548,0.05015619,59505.0,59504.0,0.084024]
[1723736494746,0.3688,59506.0,59504.0,0.084024]
[1723736495349,0.3788,59506.0,59504.0,0.084024]
[1723736495655,0.3708,59506.0,59504.0,0.084024]
[1723736496154,0.3608,59506.0,59505.0,0.084062]
[1723736496347,0.3778,59506.0,59505.0,0.084062]
[1723736496550,0.44474562,59506.0,59505.0,0.084062]
[1723736496745,0.43468576,59506.0,59505.0,0.084062]
[1723736497254,0.3778,59506.0,59505.0,4e-05]
[1723736497439,0.463821,59506.0,59505.0,4e-05]
[1723736497645,0.453821,59506.0,59505.0,4e-05]
[1723736497943,0.3798,59506.0,59505.0,4e-05]
[1723736498137,0.3718,59506.0,59505.0,4e-05]
[1723736498577,0.3728,59506.0,59505.0,4e-05]
[1723736499047,0.3828,59506.0,59505.0,4e-05]
[1723736499351,0.466821,59506.0,59505.0,4e-05]
[1723736500247,0.63465079,59506.0,59505.0,4e-05]
[1723736500451,0.76405079,59506.0,59505.0,4e-05]
[1723736500754,0.88875079,59506.0,59505.0,4e-05]
[1723736501140,0.720921,59506.0,59505.0,4e-05]
[1723736502170,0.74815789,59506.0,59505.0,4e-05]
[1723736503252,0.61875789,59506.0,59505.0,4e-05]
[1723736503438,0.49405789,59506.0,59505.0,4e-05]
[1723736504744,0.40003689,59506.0,59505.0,4e-05]
[1723736504944,0.45656017,59506.0,59505.0,0.084062]
[1723736505145,0.40003515,59506.0,59505.0,0.084062]
[1723736505346,0.45659458,59506.0,59505.0,0.084062]
[1723736505549,0.3728,59506.0,59505.0,0.084062]
[1723736506247,0.45659458,59506.0,59505.0,0.084062]
[1723736507047,0.40003461,59506.0,59505.0,0.084062]
[1723736511355,0.40003378,59506.0,59505.0,0.084062]
[1723736520368,0.40003374,59506.0,59505.0,0.084062]
[1723736522767,0.40003374,59506.0,59505.0,0.168084]
[1723736522971,0.08394262,59507.0,59506.0,0.168042]
[1723736523264,0.06714122,59507.0,59506.0,0.789942]
[1723736523469,0.06714122,59507.0,59506.0,1.378123]
[1723736523470,0.05200535,59507.0,59506.0,1.378123]
[1723736523674,0.00025206,59511.0,59510.0,0.16803]
[1723736524055,0.00025206,59511.0,59510.0,1.07215]
[1723736524469,0.3608,59518.0,59517.0,0.084005]
[1723736524676,0.38803024,59518.0,59517.0,0.345105]
[1723736525669,0.38803024,59518.0,59517.0,0.345145]
[1723736525876,0.38803024,59518.0,59517.0,0.42915]
[1723736526063,0.38803024,59518.0,59517.0,0.43741173]
[1723736526262,0.40203024,59518.0,59517.0,0.43741173]
[1723736526465,0.3748,59518.0,59517.0,0.43741173]
[1723736527559,0.3748,59518.0,59517.0,1.34145173]
[1723736527868,0.3868,59518.0,59517.0,1.34245173]
[1723736528063,0.026,59518.0,59517.0,1.34245173]
[1723736528274,0.36105206,59523.0,59522.0,0.083998]
[1723736528275,0.00025206,59523.0,59522.0,0.083998]
[1723736528568,0.3608,59528.0,59527.0,0.083991]
[1723736528759,0.3608,59528.0,59527.0,0.345091]
[1723736529761,0.3608,59528.0,59527.0,0.345131]
[1723736529961,0.3608,59528.0,59527.0,0.346131]
[1723736530167,0.3888,59528.0,59527.0,0.347131]
[1723736531973,0.3888,59528.0,59527.0,0.01005619]
[1723736532181,0.47279,59528.0,59527.0,0.01005619]
[1723736532365,0.3888,59528.0,59527.0,0.01005619]
[1723736532672,0.028,59528.0,59527.0,0.68199819]
[1723736533175,0.07817773,59528.0,59527.0,0.68199819]
[1723736534377,0.06417773,59528.0,59527.0,0.68299819]
[1723736534962,0.05017773,59528.0,59527.0,0.68699819]
[1723736535168,0.05037773,59529.0,59528.0,0.08399]
[1723736535368,0.05037773,59529.0,59528.0,0.34509]
[1723736535784,0.361,59529.0,59528.0,0.34509]
[1723736536290,0.361,59529.0,59527.0,0.01705619]
[1723736536479,0.361,59529.0,59528.0,0.08603]
[1723736536676,0.361,59529.0,59528.0,0.09203]
[1723736536879,0.361,59529.0,59528.0,0.00804]
[1723736537080,0.361,59529.0,59528.0,0.09203]
[1723736538781,0.361,59529.0,59528.0,0.35313]
[1723736538971,0.361,59529.0,59528.0,0.43712]
[1723736539276,0.361,59529.0,59528.0,1.32578]
[1723736539474,0.41114887,59529.0,59528.0,1.32578]
[1723736539676,0.41114887,59529.0,59528.0,0.82182]
[1723736540378,0.41114887,59529.0,59528.0,0.73783]
[1723736540574,0.361,59529.0,59528.0,0.73783]
[1723736540973,0.361,59529.0,59528.0,0.82182]
[1723736543569,0.00025206,59533.0,59532.0,0.167968]
[1723736543773,0.3608,59547.0,59535.0,0.08398]
[1723736543774,0.05014575,59536.0,59535.0,0.08398]
[1723736543969,0.55396293,59547.0,59535.0,0.6219]
[1723736543970,0.05014575,59540.0,59535.0,0.6219]
[1723736544173,0.3608,59547.0,59539.0,0.2611]
[1723736544379,0.05013336,59541.0,59540.0,0.528746]
[1723736544567,0.05013336,59546.0,59542.0,0.08397]
[1723736544773,0.05013336,59548.0,59547.0,0.083963]
[1723736544973,0.0002519,59550.0,59547.0,0.3608]
[1723736545182,0.0002519,59550.0,59549.0,0.08396]
[1723736545383,0.0002519,59550.0,59549.0,0.34506]
[1723736546284,0.0002519,59550.0,59549.0,0.34859763]
[1723736546674,0.0002519,59550.0,59549.0,0.0958864]
[1723736547185,0.0062519,59550.0,59549.0,0.0968864]
[1723736547379,0.0062519,59550.0,59549.0,0.00453763]
[1723736547584,0.14028378,59550.0,59549.0,0.00453763]
[1723736547786,0.14328378,59550.0,59549.0,0.00453763]
[1723736547979,0.0932109,59550.0,59549.0,0.00453763]
[1723736548483,0.0092519,59550.0,59549.0,0.08849763]
[1723736548788,0.0092519,59550.0,59549.0,0.00453763]
[1723736549971,0.0092519,59550.0,59549.0,0.08849763]
[1723736550186,0.4749,59562.0,59554.0,0.083953]
[1723736550187,0.05005682,59555.0,59554.0,0.083953]
[1723736550489,0.05005682,59561.0,59560.0,0.083945]
[1723736550675,0.3608,59562.0,59561.0,0.083943]
[1723736550983,0.4408,59562.0,59561.0,0.083943]
[1723736551886,0.4408,59562.0,59561.0,0.08748063]
[1723736552388,0.4408,59562.0,59561.0,0.08848063]
[1723736552389,0.4438,59562.0,59561.0,0.08848063]
[1723736553192,0.49385682,59562.0,59561.0,0.08848063]
[1723736553494,0.41385682,59562.0,59561.0,0.09685128]
[1723736553683,0.4538,59562.0,59561.0,0.09785128]
[1723736554884,0.3638,59562.0,59561.0,0.09785128]
[1723736556495,0.30355399,59562.0,59561.0,0.18179428]
[1723736557787,0.003,59562.0,59561.0,0.09785128]
[1723736557979,0.003,59562.0,59561.0,0.22665128]
[1723736558580,0.003,59562.0,59561.0,1.13033128]
[1723736559587,0.003,59562.0,59561.0,0.22665128]
[1723736561492,0.003,59562.0,59561.0,0.14270828]
[1723736561791,0.003,59562.0,59561.0,0.01390828]
[1723736564384,0.003,59562.0,59561.0,0.09785128]
[1723736569107,0.05005315,59581.0,59580.0,0.083917]
[1723736569302,0.1206,59593.0,59580.0,0.6219]
[1723736569608,0.05003445,59593.0,59592.0,0.0839]
[1723736569799,0.05003445,59595.0,59594.0,0.083897]
[1723736570096,0.083896,59595.0,59594.0,0.2611]
[1723736570900,0.083896,59595.0,59594.0,0.2621]
[1723736571094,0.997296,59595.0,59594.0,0.2621]
[1723736571288,0.587296,59595.0,59594.0,0.26563763]
[1723736571896,0.587296,59595.0,59594.0,0.26663763]
[1723736572600,0.3608,59596.0,59594.0,0.26663763]
[1723736573805,0.3608,59596.0,59595.0,0.00353763]
[1723736573986,0.3608,59596.0,59595.0,0.08743363]
[1723736574186,1.2642,59596.0,59595.0,0.00353763]
[1723736574401,1.348094,59596.0,59595.0,0.00353763]
[1723736574892,1.358094,59596.0,59595.0,0.00353763]
[1723736575089,1.441988,59596.0,59595.0,0.00353763]
[1723736575297,0.5034,59595.0,59583.0,0.083911]
[1723736575497,0.083911,59585.0,59583.0,0.083911]
[1723736575798,0.1202,59584.0,59583.0,0.083911]
[1723736576188,0.1202,59584.0,59583.0,0.09210642]
[1723736576698,0.12024,59584.0,59583.0,0.09210642]
[1723736577202,4e-05,59584.0,59583.0,0.35320642]
[1723736577389,0.00025111,59589.0,59585.0,0.08391]
[1723736577390,0.05001752,59588.0,59585.0,0.08391]
[1723736577590,0.00025111,59589.0,59588.0,0.083905]
[1723736578093,0.00025111,59589.0,59588.0,0.213805]
[1723736578990,0.00025111,59589.0,59588.0,0.213845]
[1723736580508,0.08615511,59589.0,59588.0,4e-05]
[1723736580707,1.02959511,59589.0,59588.0,4e-05]
[1723736580889,1.07961263,59589.0,59588.0,4e-05]
[1723736581111,1.26109511,59589.0,59588.0,4e-05]
[1723736581301,0.25075511,59589.0,59588.0,4e-05]
[1723736581607,0.08615511,59589.0,59588.0,4e-05]
[1723736581995,0.05227637,59589.0,59588.0,4e-05]
[1723736582799,0.10615511,59589.0,59588.0,4e-05]
[1723736583002,0.00225111,59589.0,59588.0,4e-05]
[1723736583205,0.00225111,59589.0,59588.0,0.083945]
[1723736583604,0.00225111,59589.0,59588.0,0.822745]
[1723736583999,0.00225111,59589.0,59588.0,0.90665]
[1723736584508,0.36433763,59596.0,59595.0,0.083895]
[1723736584697,0.36433763,59596.0,59595.0,0.344995]
[1723736585099,0.36433763,59596.0,59595.0,0.2611]
[1723736585702,0.41436754,59596.0,59595.0,0.26114]
[1723736586512,0.41436754,59596.0,59595.0,0.26214]
[1723736587095,0.41436754,59596.0,59595.0,0.26314]
[1723736587298,0.05001857,59598.0,59595.0,0.707835]
[1723736587502,0.06670493,59602.0,59595.0,0.707835]
[1723736587503,0.05001857,59604.0,59598.0,0.083891]
[1723736587705,0.05001857,59604.0,59596.0,0.5958]
[1723736587706,0.05001857,59605.0,59604.0,0.083883]
[1723736587906,0.05001857,59611.0,59610.0,0.083874]
[1723736588102,0.05001857,59611.0,59605.0,0.1187]
[1723736588103,0.05001857,59613.0,59605.0,0.1187]
[1723736588317,0.05001857,59613.0,59612.0,0.083872]
[1723736588504,0.3608,59617.0,59613.0,0.08387]
[1723736588505,0.41081857,59617.0,59613.0,0.08387]
[1723736589205,0.05001857,59616.0,59610.0,0.2611]
[1723736589501,0.3608,59617.0,59615.0,0.2611]
[1723736589910,0.3608,59617.0,59616.0,0.083866]
[1723736590303,0.41081857,59617.0,59616.0,0.083866]
[1723736590504,0.3608,59617.0,59616.0,0.083866]
[1723736591006,0.04993516,59625.0,59624.0,0.083855]
[1723736591208,0.04993516,59626.0,59625.0,0.083853]
[1723736591413,0.41073516,59628.0,59626.0,0.083852]
[1723736591713,0.41073516,59628.0,59624.0,0.3262]
[1723736591908,0.3608,59628.0,59624.0,0.3262]
[1723736592406,0.444649,59628.0,59624.0,0.3262]
[1723736593123,4e-05,59625.0,59624.0,0.3262]
[1723736593513,4e-05,59625.0,59624.0,0.001]
[1723736594102,4e-05,59625.0,59624.0,0.084855]
[1723736594310,4e-05,59625.0,59624.0,0.085855]
[1723736594904,0.083893,59625.0,59624.0,0.002]
[1723736595109,4e-05,59625.0,59624.0,0.002]
[1723736595411,4e-05,59625.0,59624.0,0.085855]
[1723736597410,4e-05,59625.0,59624.0,0.002]
[1723736597916,0.093893,59625.0,59624.0,0.002]
[1723736599216,0.083893,59625.0,59624.0,0.002]
[1723736599922,0.093893,59625.0,59624.0,0.002]
[1723736600122,0.997053,59625.0,59624.0,0.002]
[1723736600713,0.083859,59621.0,59620.0,0.00025161]
[1723736600917,0.41072908,59621.0,59620.0,0.08411161]
[1723736601107,0.3608,59621.0,59620.0,0.08411161]
[1723736601908,0.36084,59621.0,59620.0,0.08411161]
[1723736602108,0.36084,59621.0,59620.0,0.08511161]
[1723736603008,0.36084,59621.0,59620.0,0.08611161]
[1723736604717,4e-05,59621.0,59620.0,0.16997161]
[1723736605415,0.04993419,59632.0,59627.0,0.08385]
[1723736605610,0.04993419,59632.0,59631.0,0.083845]
[1723736605804,0.3608,59634.0,59632.0,0.083843]
[1723736605805,0.04993419,59633.0,59632.0,0.083843]
[1723736606035,0.12993419,59633.0,59632.0,0.083843]
[1723736606307,0.08,59633.0,59632.0,0.083843]
[1723736606816,0.1299306,59633.0,59632.0,0.083843]
[1723736607216,0.08,59633.0,59632.0,0.084843]
[1723736608219,0.08,59633.0,59632.0,0.001]
[1723736608412,0.08,59633.0,59632.0,0.002]
[1723736609019,0.08,59633.0,59632.0,0.085843]
[1723736610412,0.08,59633.0,59632.0,0.169686]
[1723736610618,0.41075402,59640.0,59632.0,0.412043]
[1723736610918,0.3608,59640.0,59632.0,0.412043]
[1723736611119,0.3608,59640.0,59639.0,0.083834]
[1723736612717,0.454633,59640.0,59634.0,0.00025161]
[1723736612918,0.528478,59635.0,59634.0,0.00025161]
[1723736613317,0.60518293,59635.0,59634.0,0.00025161]
[1723736613623,0.60518293,59635.0,59614.0,0.2608]
[1723736613624,0.083848,59630.0,59614.0,0.2608]
[1723736613816,0.41082955,59625.0,59620.0,0.083859]
[1723736614018,0.05002955,59623.0,59620.0,0.083859]
[1723736614241,0.05002955,59623.0,59612.0,0.23488]
[1723736614242,0.083866,59617.0,59606.0,0.00084]
[1723736614417,0.0500387,59616.0,59611.0,0.3608]
[1723736614619,0.42751826,59617.0,59614.0,0.083868]
[1723736614923,0.05006805,59615.0,59614.0,0.083869]
[1723736615219,0.05006805,59615.0,59612.0,0.2608]
[1723736615431,0.13393605,59615.0,59612.0,0.2608]
[1723736615609,0.05006805,59613.0,59612.0,0.2608]
[1723736616013,0.05006805,59613.0,59611.0,0.45396624]
[1723736616218,0.05006805,59613.0,59611.0,0.45312624]
[1723736616423,0.05006805,59612.0,59611.0,0.45312624]
[1723736616626,0.06671826,59614.0,59612.0,0.083871]
[1723736617117,0.06671826,59614.0,59613.0,0.08387]
[1723736617323,0.06671826,59616.0,59612.0,0.3262]
[1723736617523,0.00025087,59619.0,59612.0,0.3262]
[1723736617712,0.00025087,59619.0,59612.0,0.3322]
[1723736617713,0.05015377,59613.0,59612.0,0.3322]
[1723736618324,0.05015377,59613.0,59612.0,0.3262]
[1723736618525,4e-05,59613.0,59612.0,0.3322]
[1723736618919,4e-05,59613.0,59612.0,0.092872]
[1723736619119,4e-05,59613.0,59612.0,0.086872]
[1723736619321,4e-05,59613.0,59612.0,0.092872]
[1723736620116,0.0669216,59613.0,59612.0,0.092872]
[1723736621425,4e-05,59613.0,59612.0,0.092872]
[1723736621628,0.06693925,59613.0,59612.0,0.092872]
[1723736624422,0.06693925,59613.0,59611.0,0.00845324]
[1723736624423,0.083872,59612.0,59611.0,0.00845324]
[1723736624731,0.167752,59609.0,59608.0,1e-08]
[1723736624930,0.20494142,59609.0,59608.0,1e-08]
[1723736625118,1.19209742,59609.0,59608.0,1e-08]
[1723736625532,1.29237801,59609.0,59608.0,1e-08]
[1723736625732,1.02434542,59609.0,59598.0,0.3608]
[1723736626026,0.15074424,59599.0,59598.0,0.3608]
[1723736626433,0.06685424,59600.0,59598.0,0.3608]
[1723736626626,0.06681474,59608.0,59599.0,0.50336]
[1723736626830,0.05014863,59613.0,59609.0,0.083876]
[1723736627131,0.03576396,59616.0,59612.0,0.3608]
[1723736627328,0.00025161,59617.0,59616.0,0.083866]
[1723736628767,0.00725161,59617.0,59616.0,0.084866]
[1723736629230,0.01025161,59617.0,59616.0,0.084866]
[1723736629424,0.01025161,59617.0,59616.0,0.001]
[1723736629732,0.02025161,59617.0,59616.0,0.001]